bitfinex/quotes_ETHUSD_20240602
["timestamp","ask_amount","ask_price","bid_price","bid_amount"]
[1717296778192,4.66068653,3802.2,3802.1,0.711]
[1717296778491,4.09196238,3802.2,3802.1,0.711]
[1717296779338,3.0,3802.2,3802.1,0.711]
[1717296779613,4.09196238,3802.2,3802.1,0.711]
[1717296780312,3.0,3802.2,3802.1,0.711]
[1717296781520,4.08815765,3802.2,3802.1,0.711]
[1717296782297,4.08854134,3802.2,3802.1,0.711]
[1717296782502,1.08854134,3802.3,3802.1,0.711]
[1717296782717,1.08854134,3802.3,3802.2,0.711]
[1717296783016,0.81650823,3802.3,3802.2,0.711]
[1717296783217,0.81650823,3802.3,3802.2,3.34104]
[1717296783718,0.81650823,3802.4,3802.2,3.34104]
[1717296784014,0.81650823,3802.4,3802.3,1.313343]
[1717296784196,0.81650823,3802.4,3802.3,0.602343]
[1717296784395,0.81650823,3802.4,3802.3,1.313343]
[1717296784912,0.81650823,3802.5,3802.3,1.313343]
[1717296785120,0.81650823,3802.6,3802.4,1.1361873]
[1717296786078,0.81650823,3802.5,3802.4,1.1361873]
[1717296787114,0.81650823,3802.6,3802.4,1.1361873]
[1717296787330,0.81650823,3802.5,3802.4,0.4251873]
[1717296787487,0.81650823,3802.5,3802.4,3.4583873]
[1717296787686,0.81650823,3802.6,3802.4,3.4583873]
[1717296787922,1.08854134,3802.7,3802.5,1.31984273]
[1717296792732,0.81733008,3802.7,3802.5,1.31984273]
[1717296793031,0.81733008,3802.6,3802.5,1.31984273]
[1717296793795,0.81733008,3802.6,3802.5,3.94968273]
[1717296793995,0.81733008,3802.7,3802.5,3.94968273]
[1717296794232,0.81733008,3802.7,3802.6,0.62718827]
[1717296794738,0.81733008,3802.7,3802.6,1.33818827]
[1717296794933,1.08854134,3802.8,3802.6,1.33818827]
[1717296795111,1.08854134,3802.8,3802.6,0.62718827]
[1717296795536,1.08854134,3802.7,3802.4,2.3222]
[1717296795740,0.81710694,3802.6,3802.4,2.3222]
[1717296796039,0.81710694,3802.6,3802.5,0.711]
[1717296798647,1.08854134,3802.6,3802.5,0.711]
[1717296798940,1.08854134,3802.7,3802.5,0.711]
[1717296799249,1.08854134,3802.7,3802.6,0.711]
[1717296801354,1.36211817,3802.8,3802.6,0.711]
[1717296801550,1.36211817,3802.8,3802.7,0.711]
[1717296802162,3.99174817,3802.9,3802.7,0.711]
[1717296802455,1.08921404,3802.8,3802.7,0.711]
[1717296803048,3.99174817,3802.9,3802.7,0.711]
[1717296803253,1.08921945,3802.8,3802.7,0.711]
[1717296803458,1.36211817,3802.9,3802.7,0.711]
[1717296803818,1.08922001,3802.9,3802.7,0.711]
[1717296804018,1.08922001,3802.8,3802.7,0.711]
[1717296804242,1.08922001,3802.9,3802.7,0.711]
[1717296804549,1.08922001,3802.9,3802.8,0.711]
[1717296805143,1.08922001,3803.0,3802.8,0.711]
[1717296805341,1.08922001,3803.0,3802.9,0.711]
[1717296807347,4.56208691,3803.4,3802.9,0.711]
[1717296807348,1.08922001,3803.1,3802.9,0.711]
[1717296807547,0.81679427,3803.0,3802.9,2.452]
[1717296807764,0.81679427,3803.0,3802.9,3.163]
[1717296808048,0.81679427,3803.0,3802.9,0.711]
[1717296808210,0.81679427,3803.0,3802.9,1.0273]
[1717296808410,0.81668906,3803.0,3802.9,0.3163]
[1717296808642,1.08922001,3803.1,3802.9,0.711]
[1717296809030,0.8166577,3803.0,3802.9,0.711]
[1717296810254,0.8166577,3803.1,3802.9,0.711]
[1717296810551,0.8166577,3803.0,3802.7,2.6297]
[1717296810720,0.8166577,3803.1,3802.9,0.711]
[1717296810920,0.8166577,3803.1,3803.0,0.711]
[1717296812054,0.8166577,3803.2,3803.0,0.711]
[1717296812255,0.8166577,3803.2,3803.1,0.711]
[1717296812453,1.08922001,3803.3,3803.1,0.711]
[1717296813353,1.08922001,3803.2,3803.1,0.711]
[1717296817138,1.36211817,3803.3,3803.1,0.711]
[1717296817344,1.36211817,3803.3,3803.2,0.711]
[1717296819347,4.56218753,3803.4,3803.2,0.711]
[1717296820069,3.0,3803.4,3803.2,0.711]
[1717296821370,4.56218753,3803.4,3803.2,0.711]
[1717296822173,3.0,3803.4,3803.2,0.711]
[1717296823142,6.19672933,3803.4,3803.2,0.711]
[1717296823875,4.6345418,3803.4,3803.2,0.711]
[1717296828401,1.6345418,3803.3,3803.2,0.711]
[1717296831287,7.31713191,3803.7,3803.2,3.1057]
[1717296831288,1.6345418,3803.4,3803.2,3.1057]
[1717296831491,1.36511701,3803.3,3803.2,2.3947]
[1717296831660,1.36511701,3803.3,3803.2,3.1057]
[1717296831989,1.36511701,3803.3,3803.2,2.3947]
[1717296832298,2.20302185,3803.5,3803.2,0.711]
[1717296832499,1.6345418,3803.5,3803.4,0.711]
[1717296833186,2.13066706,3803.6,3803.4,0.711]
[1717296833523,2.13066706,3803.5,3803.4,0.711]
[1717296833802,1.56218753,3803.5,3803.4,0.711]
[1717296834417,1.63810531,3803.5,3803.4,0.711]
[1717296834573,2.20658484,3803.5,3803.4,0.711]
[1717296834916,2.13066706,3803.5,3803.4,0.711]
[1717296835282,1.56218753,3803.5,3803.4,0.711]
[1717296836192,3.20021514,3803.5,3803.4,0.711]
[1717296836391,2.13066706,3803.5,3803.4,0.711]
[1717296836699,1.56218753,3803.5,3803.4,0.711]
[1717296838985,1.63796097,3803.5,3803.4,0.711]
[1717296839292,2.2064405,3803.5,3803.4,0.711]
[1717296841472,1.63796097,3803.5,3803.1,2.62937]
[1717296841672,1.36474475,3803.2,3803.1,3.182594]
[1717296842002,1.09169648,3803.2,3803.1,5.72407]
[1717296842217,1.56219088,3803.9,3803.3,2.62929]
[1717296842218,1.09169648,3803.4,3803.3,2.62929]
[1717296842374,1.09169648,3803.6,3803.3,3.34029]
[1717296842718,1.09169648,3803.7,3803.6,2.62908]
[1717296843007,1.09169648,3803.7,3803.6,2.963088]
[1717296843710,1.09169648,3803.7,3803.6,5.346788]
[1717296844079,1.09169648,3803.8,3803.6,2.963088]
[1717296844278,1.63796097,3804.3,3803.7,3.4621088]
[1717296844279,1.09169648,3804.3,3803.7,3.4621088]
[1717296844484,1.36474475,3804.4,3804.2,0.711]
[1717296844899,1.36474475,3804.3,3804.2,0.711]
[1717296845076,9.34872744,3804.6,3804.2,0.711]
[1717296845286,9.34872744,3804.6,3804.5,0.711]
[1717296845517,2.3006,3804.6,3804.5,0.711]
[1717296846502,1.63796097,3804.8,3804.5,0.711]
[1717296846691,4.63796097,3804.8,3804.7,0.711]
[1717296851044,3.0,3804.8,3804.7,0.711]
[1717296851391,1.63796097,3804.9,3804.7,0.711]
[1717296851588,4.63796097,3805.0,3804.7,0.711]
[1717296851776,1.63796097,3805.1,3804.9,0.711]
[1717296852405,4.63796097,3805.2,3804.2,0.55483001]
[1717296852611,4.63796097,3805.2,3805.0,0.711]
[1717296853317,3.0,3805.2,3805.0,0.711]
[1717296854022,3.0,3805.2,3805.1,0.711]
[1717296854824,1.63796097,3805.4,3805.2,2.2645]
[1717296855022,1.63796097,3805.6,3805.3,0.711]
[1717296855225,1.63796097,3805.6,3805.5,0.711]
[1717296855536,2.62764,3805.7,3805.5,0.711]
[1717296856040,1.36152845,3805.6,3805.5,0.711]
[1717296856401,1.36152845,3805.6,3804.8,2.2645]
[1717296856402,2.62781,3805.5,3804.8,2.2645]
[1717296856608,1.08877116,3805.4,3804.5,2.62843]
[1717296856914,1.08877116,3805.4,3805.3,0.711]
[1717296857113,2.62792,3805.3,3804.5,2.62843]
[1717296857319,3.71663815,3805.3,3804.4,2.2645]
[1717296857521,2.62805,3805.1,3805.0,0.711]
[1717296857725,3.0,3805.2,3805.0,0.711]
[1717296857922,1.36034632,3805.2,3805.0,0.711]
[1717296858105,1.08832294,3805.1,3805.0,0.711]
[1717296858310,1.08832294,3805.2,3805.0,0.711]
[1717296858508,1.08832294,3805.2,3805.1,0.711]
[1717296861022,3.71635294,3805.2,3804.4,2.62853]
[1717296861239,1.08832294,3805.1,3805.0,0.711]
[1717296861396,1.08832294,3805.3,3805.0,1.02369]
[1717296861600,1.08832294,3805.3,3805.2,0.711]
[1717296862852,1.08832294,3805.4,3805.2,0.711]
[1717296863151,1.08832294,3805.4,3805.3,0.711]
[1717296866140,4.08832294,3805.5,3805.3,0.711]
[1717296866327,3.0,3805.5,3805.3,0.711]
[1717296866722,4.08832294,3805.5,3805.3,0.711]
[1717296870210,3.0,3805.5,3805.3,0.711]
[1717296870916,1.08832294,3805.7,3805.3,0.711]
[1717296871116,1.08832294,3805.7,3805.0,2.62807]
[1717296871117,1.08832294,3805.7,3805.6,0.711]
[1717296871343,2.62763,3805.7,3805.1,0.504397]
[1717296871556,2.62763,3805.7,3805.0,2.62807]
[1717296871557,2.62763,3805.7,3805.6,0.711]
[1717296871741,7.5556593,3805.7,3805.6,0.711]
[1717296872238,9.9532593,3805.7,3805.6,0.711]
[1717296872550,11.51645542,3805.7,3805.6,0.711]
[1717296872844,9.9532593,3805.7,3805.6,0.711]
[1717296873412,11.51645542,3805.7,3805.6,0.711]
[1717296874021,2.62784,3805.5,3804.8,2.4159]
[1717296874216,3.71570283,3805.5,3804.6,2.62833]
[1717296874547,3.71570283,3805.5,3805.4,0.711]
[1717296874746,6.71570283,3805.5,3805.4,0.711]
[1717296875259,6.71570283,3805.5,3804.4,2.3719]
[1717296875464,3.71584283,3805.2,3804.4,2.3719]
[1717296875639,3.71584283,3805.2,3805.1,0.711]
[1717296875834,6.71584283,3805.2,3805.1,0.711]
[1717296876060,9.19334283,3805.2,3805.1,0.711]
[1717296876256,9.19334283,3805.2,3804.4,2.3719]
[1717296876460,9.19334283,3805.2,3804.1,2.2869]
[1717296876461,2.62819,3804.9,3804.1,2.2869]
[1717296876631,3.0,3804.8,3804.7,0.711]
[1717296876826,2.62833,3804.7,3804.0,2.6288]
[1717296877045,2.62833,3804.7,3804.6,0.711]
[1717296879130,2.62833,3804.7,3804.0,2.6288]
[1717296879326,2.62833,3804.7,3804.6,0.711]
[1717296880456,4.08786283,3804.8,3804.6,0.711]
[1717296880655,1.08786283,3804.8,3804.6,3.33938]
[1717296880861,1.08786283,3805.0,3804.8,2.62825]
[1717296881123,1.08786283,3805.3,3804.9,2.4283]
[1717296881233,1.08786283,3805.6,3805.1,0.711]
[1717296881428,1.08786283,3805.6,3805.4,0.711]
[1717296881645,1.08786283,3805.7,3805.4,0.711]
[1717296881873,1.08786283,3805.7,3805.1,2.62805]
[1717296881874,1.08786283,3805.7,3805.6,0.711]
[1717296882367,1.35980763,3805.8,3805.6,0.711]
[1717296884342,1.35980763,3805.7,3805.6,0.711]
[1717296885244,1.63176916,3806.0,3805.6,0.711]
[1717296885569,1.63176916,3806.0,3805.9,0.711]
[1717296887176,3.0,3806.1,3805.9,0.711]
[1717296887669,4.63176916,3806.1,3805.9,0.711]
[1717296887993,3.0,3806.1,3805.9,0.711]
[1717296890697,1.36341239,3806.0,3805.9,0.711]
[1717296891192,1.36341239,3806.0,3805.9,1.04487]
[1717296892463,4.63176916,3806.3,3805.9,1.04487]
[1717296892767,4.63176916,3806.3,3806.2,0.711]
[1717296893394,7.25898916,3806.3,3805.6,2.6277]
[1717296893599,1.09062364,3805.7,3805.6,0.54075741]
[1717296893804,1.09062364,3805.7,3805.6,1.25175741]
[1717296898616,1.36327956,3805.8,3805.6,1.25175741]
[1717296898916,3.0,3806.1,3805.6,1.25175741]
[1717296898917,1.09097841,3805.7,3805.6,0.54075741]
[1717296899091,1.09097841,3805.7,3805.6,0.711]
[1717296899697,1.09097841,3805.8,3805.6,0.711]
[1717296899910,1.09097841,3805.8,3805.5,5.05606]
[1717296899911,1.09097841,3805.8,3805.7,1.287706]
[1717296901043,1.36327956,3805.9,3805.7,1.287706]
[1717296901183,1.36327956,3805.9,3805.8,0.711]
[1717296901382,1.36327956,3805.9,3805.8,1.3453766]
[1717296901805,1.36327956,3805.9,3805.8,0.711]
[1717296902332,4.25912916,3806.1,3805.8,0.711]
[1717296902684,2.62736,3806.1,3805.8,0.711]
[1717296902894,4.26358646,3806.1,3805.8,0.711]
[1717296903524,1.63622646,3806.0,3805.8,0.711]
[1717296910506,3.76779797,3806.0,3805.8,0.711]
[1717296910799,3.19967972,3806.0,3805.8,0.711]
[1717296912018,1.63622646,3806.0,3805.8,0.711]
[1717296914548,1.63622646,3806.1,3805.8,0.711]
[1717296914708,1.63622646,3806.1,3806.0,0.711]
[1717296915740,3.0,3806.2,3806.0,0.711]
[1717296915944,3.19912188,3806.3,3806.0,0.711]
[1717296916107,1.36402144,3806.3,3806.2,0.711]
[1717296916523,5.41016647,3806.4,3806.2,0.711]
[1717296916723,1.36383912,3806.3,3806.2,0.711]
[1717296917248,5.41016647,3806.4,3806.2,0.711]
[1717296918037,1.36368266,3806.3,3806.2,0.711]
[1717296920411,4.63622646,3806.6,3806.2,0.711]
[1717296920568,1.63622646,3806.6,3806.5,0.711]
[1717296920763,1.63622646,3806.7,3806.1,2.9945774]
[1717296920964,1.63622646,3806.8,3806.5,0.711]
[1717296921160,4.63622646,3806.9,3806.1,2.62734]
[1717296921466,1.09084444,3806.3,3806.1,2.62734]
[1717296921701,1.09084444,3806.3,3806.2,0.711]
[1717296921902,1.36355555,3806.4,3806.2,0.711]
[1717296922061,1.090613,3806.3,3806.2,0.711]
[1717296922402,1.36355555,3806.5,3806.2,0.711]
[1717296922644,1.09075917,3806.3,3805.7,2.62757]
[1717296922802,1.09075917,3806.3,3806.2,0.711]
[1717296923387,1.09075917,3806.3,3805.7,2.62757]
[1717296923577,2.3501,3806.4,3805.7,2.62757]
[1717296923578,3.71365555,3806.4,3806.2,0.711]
[1717296923778,1.36355555,3806.3,3805.7,2.62757]
[1717296924000,1.09081329,3806.1,3805.8,0.503847]
[1717296924176,1.09081329,3806.1,3806.0,0.711]
[1717296926504,1.36355555,3806.2,3806.1,2.4109]
[1717296926914,1.09189561,3806.5,3806.1,2.4109]
[1717296927062,1.09189561,3806.5,3806.4,0.711]
[1717296927268,1.09189561,3806.6,3806.5,2.62708]
[1717296927502,1.09189561,3806.6,3806.5,3.33808]
[1717296928505,1.09189561,3806.7,3806.5,3.33808]
[1717296928683,1.09189561,3806.7,3806.6,1.044808]
[1717296929515,1.09189561,3806.7,3806.6,2.034808]
[1717296930017,1.36355555,3806.8,3806.6,2.034808]
[1717296931232,1.36355555,3806.8,3806.7,0.7072788]
[1717296933115,1.36355555,3806.8,3806.6,1.701]
[1717296933477,1.36355555,3806.8,3806.1,2.62732]
[1717296933676,2.6268,3807.0,3805.8,6.73946]
[1717296933677,1.08956926,3806.5,3805.8,6.73946]
[1717296933901,1.08956926,3806.4,3805.9,0.673946]
[1717296935815,1.08956926,3806.3,3805.9,0.673946]
[1717296936025,1.08956926,3806.3,3805.8,4.32856]
[1717296938597,1.08956926,3806.3,3806.2,1.701]
[1717296942603,1.08956926,3806.4,3806.2,1.701]
[1717296943331,1.08956926,3806.4,3806.2,2.133836]
[1717296943635,1.08956926,3806.3,3806.2,2.133836]
[1717296943929,1.08956926,3806.3,3806.2,1.701]
[1717296944129,1.08956926,3806.4,3806.3,2.62722]
[1717296945233,1.36355555,3806.5,3806.3,2.62722]
[1717296946933,1.36355555,3806.5,3806.3,3.308232]
[1717296947405,1.08924362,3806.4,3806.3,3.308232]
[1717296947606,1.08924362,3806.4,3806.3,2.62722]
[1717296951412,1.36141629,3806.5,3806.3,2.62722]
[1717296951635,1.36141629,3806.5,3806.4,0.709]
[1717296951945,1.36141629,3806.6,3806.4,0.709]
[1717296952144,1.36141629,3806.6,3806.5,0.709]
[1717296952445,1.36151978,3806.6,3806.5,0.709]
[1717296953130,4.63382374,3806.9,3806.5,0.709]
[1717296953432,4.63382374,3806.9,3806.8,0.709]
[1717296954342,3.0,3806.9,3806.8,0.709]
[1717296954552,4.63382374,3806.9,3806.8,0.709]
[1717296955631,1.63382374,3806.9,3806.8,0.709]
[1717296955948,5.41016647,3807.0,3806.8,1.042588]
[1717296956144,6.77268652,3807.0,3806.9,2.6268]
[1717296956348,1.36252005,3807.1,3806.9,4.9781]
[1717296956650,1.09015019,3807.0,3806.9,5.54681]
[1717296956812,1.09015019,3807.0,3806.9,3.90451]
[1717296957011,1.36252005,3807.1,3806.9,3.90451]
[1717296957343,1.36252005,3807.1,3807.0,0.709]
[1717296957509,7.04832374,3807.4,3807.0,0.709]
[1717296957707,7.04832374,3807.4,3807.3,0.709]
[1717296958255,4.63382374,3807.4,3807.3,0.709]
[1717296958438,1.63382374,3807.4,3807.3,0.709]
[1717296960524,2.4546,3807.5,3806.5,2.62701]
[1717296960731,1.09081404,3806.6,3806.1,2.62729]
[1717296961038,1.36351755,3806.8,3805.8,2.62756]
[1717296961039,1.09081404,3806.2,3805.8,2.62756]
[1717296961247,1.09081404,3806.0,3805.8,2.62756]
[1717296961839,1.09081404,3805.9,3805.7,0.23524]
[1717296962045,1.09081404,3805.8,3805.1,2.62801]
[1717296962223,1.09064316,3805.6,3805.1,2.62801]
[1717296962418,1.09064316,3805.6,3805.5,0.709]
[1717296962851,1.36351755,3805.6,3805.1,2.62801]
[1717296963021,1.09044397,3805.4,3805.2,0.262801]
[1717296963244,1.09044397,3805.4,3805.3,0.709]
[1717296964428,1.36351755,3805.5,3805.3,0.709]
[1717296964627,1.36351755,3805.5,3805.4,0.709]
[1717296965161,2.62773,3805.6,3805.4,0.709]
[1717296966351,2.62773,3805.6,3804.7,2.62828]
[1717296966557,1.08916574,3805.1,3804.3,2.62858]
[1717296966742,1.08916574,3805.0,3804.4,0.262858]
[1717296966946,1.36145718,3805.2,3804.9,0.709]
[1717296967151,1.36145718,3805.1,3804.4,0.262858]
[1717296967336,1.36145718,3805.1,3804.3,2.62858]
[1717296967337,1.088614,3805.0,3804.5,0.2891438]
[1717296967650,1.088614,3805.0,3804.3,2.62858]
[1717296967651,1.088614,3805.0,3804.6,1.99377238]
[1717296969356,1.088614,3805.1,3804.6,1.99377238]
[1717296969669,2.62812,3805.0,3804.0,2.3524]
[1717296969833,1.088614,3804.9,3804.0,1.702]
[1717296970023,1.088614,3804.9,3803.9,2.62887]
[1717296970219,2.62826,3804.8,3803.9,2.891757]
[1717296970516,3.716874,3804.8,3803.9,2.891757]
[1717296970766,2.62826,3804.8,3803.9,4.593757]
[1717296972858,2.62826,3804.8,3804.0,0.4593757]
[1717296973564,6.716624,3805.2,3804.3,1.702]
[1717296974055,6.716624,3805.2,3804.3,4.0544]
[1717296974872,6.716624,3805.2,3804.3,1.702]
[1717296976347,5.62801,3805.2,3804.2,2.62864]
[1717296976544,6.716624,3805.2,3804.2,2.62864]
[1717296976841,2.62816,3805.0,3803.9,1.964887]
[1717296977168,3.716774,3805.0,3803.9,1.964887]
[1717296978472,2.62816,3805.0,3803.9,1.964887]
[1717296978974,2.62816,3805.0,3804.0,2.4387]
[1717296979155,3.716774,3805.0,3804.0,2.4387]
[1717296979479,2.62816,3805.0,3804.1,3.3319407]
[1717296979671,2.62816,3805.0,3804.3,1.702]
[1717296980258,9.49878047,3805.2,3804.3,1.702]
[1717296980259,8.41016647,3805.2,3804.3,1.702]
[1717296980462,8.41016647,3805.2,3804.4,0.50339407]
[1717296981041,9.49878047,3805.2,3804.3,1.702]
[1717296981236,9.49878047,3805.2,3804.9,2.62816]
[1717296981237,6.49878047,3805.2,3804.9,2.62816]
[1717296981541,5.41016647,3805.2,3805.0,0.433016]
[1717296981838,5.41016647,3805.2,3804.7,1.702]
[1717296982662,5.41016647,3805.2,3804.8,2.62825]
[1717296982862,11.03782647,3805.7,3804.8,2.62825]
[1717296983459,8.41016647,3805.7,3804.8,2.62825]
[1717296983665,8.41016647,3805.7,3805.0,2.62805]
[1717296983861,3.442614,3805.6,3804.6,2.62834]
[1717296984341,0.55,3805.5,3804.6,2.62834]
[1717296984548,2.62786,3805.4,3804.6,2.62834]
[1717296984882,2.62786,3805.4,3804.2,4.33062]
[1717296985068,3.0,3805.3,3804.2,4.78118575]
[1717296986292,3.0,3805.3,3804.5,2.62845]
[1717296986445,3.0,3805.3,3802.8,2.88912648]
[1717296986446,2.354,3805.2,3804.1,2.62869]
[1717296986648,2.62807,3805.1,3804.1,2.62869]
[1717296986983,2.62825,3804.9,3803.7,4.33096]
[1717296987482,2.62825,3804.9,3804.0,2.62877]
[1717296988080,2.62825,3804.9,3804.1,1.702]
[1717296991079,3.0,3804.8,3804.3,1.702]
[1717296991447,3.0,3804.8,3804.3,4.33057]
[1717296991756,3.0,3805.1,3804.3,4.33057]
[1717296994598,3.0,3805.1,3804.6,2.62838]
[1717296994801,5.41016647,3805.2,3804.8,2.62822]
[1717296995222,2.4654,3805.1,3804.4,2.62847]
[1717296995370,5.4654,3805.1,3804.4,2.62847]
[1717296998412,6.554014,3805.1,3804.0,2.62875]
[1717296998601,2.62815,3805.0,3804.0,2.62875]
[1717296998799,3.716764,3805.0,3804.0,2.62875]
[1717296999128,2.62815,3805.0,3804.0,2.62875]
[1717296999298,3.716764,3805.0,3804.0,3.061825]
[1717296999491,2.62815,3805.0,3804.0,3.061825]
[1717297001421,3.716764,3805.0,3804.0,3.061825]
[1717297002116,2.6283,3804.8,3803.6,2.62901]
[1717297002302,1.088614,3804.7,3803.6,2.62901]
[1717297002507,1.088614,3804.7,3803.4,0.58300094]
[1717297002508,4.088614,3804.7,3803.9,2.62886]
[1717297002687,1.088614,3804.6,3803.9,2.62886]
[1717297003101,1.088614,3804.6,3803.9,4.33086]
[1717297003303,1.088614,3804.5,3804.0,0.433086]
[1717297004418,1.088614,3804.3,3804.0,0.433086]
[1717297004821,3.0,3804.6,3804.0,0.433086]
[1717297004822,1.088614,3804.4,3804.0,0.433086]
[1717297005317,1.088614,3804.2,3804.0,0.433086]
[1717297005481,1.088614,3804.2,3804.1,0.7049946]
[1717297009323,4.62904436,3804.7,3804.1,0.7049946]
[1717297009324,1.35753697,3804.3,3804.1,0.7049946]
[1717297009527,1.35753697,3804.3,3804.0,0.433086]
[1717297009820,1.35753697,3804.3,3804.2,0.71]
[1717297010192,1.62904436,3804.6,3804.0,0.433086]
[1717297010429,1.09035757,3804.1,3803.9,2.62886]
[1717297010603,1.09035757,3804.1,3804.0,0.71]
[1717297010815,3.0,3804.7,3804.0,0.71]
[1717297010816,1.36294696,3804.2,3804.0,0.71]
[1717297011023,1.36294696,3804.2,3804.1,0.71]
[1717297011219,1.62904436,3804.5,3804.1,0.71]
[1717297011420,1.36305855,3804.2,3803.9,2.62886]
[1717297011635,1.09044631,3804.0,3803.9,2.891746]
[1717297011946,1.09044631,3804.0,3803.9,3.601746]
[1717297014828,1.36322185,3804.1,3803.9,3.601746]
[1717297015130,1.36322185,3804.1,3804.0,0.71]
[1717297015739,1.36322185,3804.2,3804.0,0.71]
[1717297015923,1.36322185,3804.2,3804.1,0.71]
[1717297016141,1.36322185,3804.3,3804.2,2.62867]
[1717297016476,1.36322185,3804.3,3804.2,3.33867]
[1717297018443,1.36322185,3804.3,3804.2,2.62867]
[1717297018781,1.36322185,3804.3,3804.2,3.33867]
[1717297018926,1.63586623,3804.5,3804.2,3.33867]
[1717297019124,1.63586623,3804.5,3803.9,2.62888]
[1717297019359,1.36297844,3804.1,3803.9,2.62888]
[1717297019532,1.36297844,3804.0,3803.9,2.62888]
[1717297021548,1.36297844,3804.1,3803.9,2.62888]
[1717297021937,1.63586623,3804.4,3803.5,2.62909]
[1717297021938,1.36297844,3804.0,3803.5,2.62909]
[1717297022274,1.09024632,3803.8,3803.5,2.62909]
[1717297022502,1.09024632,3803.8,3803.6,0.262909]
[1717297026160,1.09024632,3803.9,3803.6,0.262909]
[1717297028045,1.09024632,3803.9,3803.5,4.33209]
[1717297028251,1.09024632,3803.8,3803.5,2.62909]
[1717297028593,1.09024632,3803.7,3803.5,2.62909]
[1717297029390,1.09024632,3803.8,3803.5,4.33209]
[1717297031499,1.09024632,3803.7,3803.5,4.33209]
[1717297032394,1.09024632,3803.8,3803.5,4.765299]
[1717297037400,2.3522,3804.2,3803.5,4.765299]
[1717297037401,1.09024632,3803.7,3803.5,4.765299]
[1717297037779,1.09024632,3803.7,3803.5,4.33209]
[1717297039449,1.09024632,3803.7,3802.6,2.2857]
[1717297039653,1.09024632,3803.3,3802.9,2.62956]
[1717297039954,1.09024632,3803.3,3803.2,0.71]
[1717297042828,1.09024632,3803.8,3803.2,2.9957]
[1717297043002,5.41016647,3803.9,3803.8,2.62894]
[1717297043238,1.09024632,3804.2,3804.1,2.62874]
[1717297043401,1.09024632,3804.2,3804.1,3.33874]
[1717297043652,1.09022858,3804.2,3804.1,3.33874]
[1717297043951,1.36297844,3804.3,3804.1,3.33874]
[1717297045342,1.36297844,3804.2,3804.1,3.33874]
[1717297045546,1.36297844,3804.2,3804.1,4.33174]
[1717297047442,1.63586623,3804.5,3804.1,4.33174]
[1717297048246,1.63586623,3804.4,3804.1,4.33174]
[1717297048943,1.63568524,3804.4,3804.1,4.33174]
[1717297049944,5.41016647,3804.6,3804.1,4.33174]
[1717297049945,1.63568524,3804.5,3804.1,4.33174]
[1717297050680,1.63568524,3804.5,3804.1,2.62874]
[1717297050958,1.63568524,3804.4,3804.1,2.62874]
[1717297051523,1.63568524,3804.5,3804.1,2.62874]
[1717297052139,1.36348809,3804.2,3804.1,2.62874]
[1717297052717,1.63615122,3804.5,3804.4,2.62849]
[1717297052920,7.04631769,3804.6,3804.4,2.62849]
[1717297053118,1.63615122,3804.6,3804.4,2.62849]
[1717297053834,1.63615122,3804.5,3804.4,2.62849]
[1717297058335,1.63615122,3804.5,3804.4,2.891339]
[1717297058536,1.63615122,3804.7,3804.4,4.594339]
[1717297058975,1.63615122,3804.7,3804.4,4.33149]
[1717297059141,1.36369723,3804.5,3804.4,4.33149]
[1717297059334,1.36369723,3804.6,3804.4,4.33149]
[1717297059538,1.09086854,3804.5,3804.4,4.33149]
[1717297059868,1.09086854,3804.5,3804.4,5.012889]
[1717297060075,1.36369723,3804.6,3804.4,5.012889]
[1717297061229,1.09053638,3804.5,3804.4,5.012889]
[1717297061731,1.09053638,3804.6,3804.4,5.012889]
[1717297061967,1.36369723,3804.7,3804.6,2.62839]
[1717297062691,1.09049993,3804.7,3804.6,2.62839]
[1717297063032,1.36369723,3804.8,3804.6,2.62839]
[1717297063232,5.41016647,3805.2,3804.8,2.62822]
[1717297063477,7.04569539,3805.2,3804.8,2.62822]
[1717297063947,1.36298138,3804.9,3804.8,2.62822]
[1717297064670,1.36298138,3805.0,3804.8,2.62822]
[1717297064836,1.09032192,3804.9,3804.8,2.62822]
[1717297067533,1.09032192,3804.9,3804.8,3.33722]
[1717297067873,1.09032192,3805.1,3804.8,6.16649589]
[1717297068032,1.09032192,3805.3,3805.2,2.62798]
[1717297068231,1.09032192,3805.6,3805.5,2.62777]
[1717297068431,1.09032192,3805.6,3805.5,3.33677]
[1717297068647,6.77304543,3805.7,3805.5,3.33677]
[1717297069274,1.08930427,3805.6,3805.5,3.33677]
[1717297071045,6.49947074,3805.7,3805.5,3.33677]
[1717297071440,5.41016647,3805.7,3805.5,3.33677]
[1717297071938,6.49947074,3805.7,3805.5,3.33677]
[1717297072752,5.41016647,3805.7,3805.5,3.33677]
[1717297073642,1.08930427,3805.8,3805.5,2.62777]
[1717297073843,2.3636,3805.6,3805.5,2.62777]
[1717297074182,2.3636,3805.6,3805.5,3.33677]
[1717297074382,1.08930427,3805.8,3805.5,3.33677]
[1717297074562,1.08930427,3805.8,3805.7,0.709]
[1717297074759,2.4872,3805.9,3805.7,0.709]
[1717297074760,1.08930427,3805.9,3805.7,0.709]
[1717297075159,1.08930427,3806.0,3805.7,0.709]
[1717297075342,1.08930427,3806.0,3805.9,0.709]
[1717297077293,6.57650427,3806.2,3805.9,0.709]
[1717297077443,6.57650427,3806.2,3806.1,0.709]
[1717297078443,4.08930427,3806.2,3806.1,0.709]
[1717297078656,3.0,3806.2,3806.1,0.709]
[1717297079185,4.08930427,3806.3,3806.1,0.709]
[1717297079342,1.08930427,3806.3,3806.1,0.709]
[1717297080355,3.47350427,3806.2,3805.9,0.709]
[1717297080560,3.0,3806.1,3805.9,0.709]
[1717297080889,4.08930427,3806.1,3805.9,0.709]
[1717297081282,4.08930427,3806.1,3805.6,2.62764]